bitfinex/quotes_SOLUSD_20250518
["timestamp","ask_amount","ask_price","bid_price","bid_amount"]
[1747605295730,33.79542864,167.95,167.87,21.02933081]
[1747605297737,23.35538642,167.95,167.87,21.02933081]
[1747605298754,5.95415302,167.95,167.87,21.02933081]
[1747605300134,5.95415302,167.95,167.87,15.07236298]
[1747605300135,17.4012334,167.94,167.87,15.07236298]
[1747605300649,17.4012334,167.92,167.87,15.07236298]
[1747605301058,17.4012334,167.91,167.87,15.07236298]
[1747605301243,17.4012334,167.88,167.78,5.96018595]
[1747605301432,1.48959027,167.87,167.78,31.96018595]
[1747605301633,1.48960283,167.89,167.78,31.96018595]
[1747605301827,17.4012334,167.87,167.78,31.96018595]
[1747605303657,27.86794366,167.87,167.78,31.96018595]
[1747605303838,29.35760041,167.87,167.78,31.96018595]
[1747605304760,5.9573454,167.86,167.78,31.96018595]
[1747605306761,5.9573454,167.86,167.78,5.96018595]
[1747605308550,33.82528906,167.86,167.78,5.96018595]
[1747605310852,5.9573454,167.86,167.78,5.96018595]
[1747605311745,7.44675509,167.87,167.78,5.96018595]
[1747605311954,5.95709834,167.87,167.78,5.96018595]
[1747605312141,31.95709834,167.87,167.78,5.96018595]
[1747605313266,26.0,167.87,167.78,20.86065084]
[1747605313472,10.9,167.88,167.79,0.41169456]
[1747605313972,27.86794366,167.86,167.78,5.96018595]
[1747605314860,33.82528906,167.86,167.78,5.96018595]
[1747605318577,5.9573454,167.86,167.78,5.96018595]
[1747605318776,33.82528906,167.86,167.78,5.96018595]
[1747605319074,5.95805529,167.84,167.78,5.96018595]
[1747605319269,33.82599895,167.84,167.77,7.4787254]
[1747605319470,5.95805529,167.84,167.77,7.4787254]
[1747605320177,27.86794366,167.84,167.77,7.4787254]
[1747605321673,33.82628869,167.84,167.77,5.9604254]
[1747605321973,27.86794366,167.83,167.77,5.9604254]
[1747605323074,33.8266467,167.83,167.77,5.9604254]
[1747605323775,33.8266467,167.83,167.76,12.23606331]
[1747605324689,27.86794366,167.82,167.76,5.96086331]
[1747605325582,33.82682227,167.82,167.76,5.96086331]
[1747605325753,23.38578591,167.82,167.76,5.96086331]
[1747605326279,17.4269073,167.82,167.76,5.96086331]
[1747605326860,23.38569803,167.82,167.76,5.96086331]
[1747605329266,17.4269073,167.8,167.74,18.64964886]
[1747605329475,17.4269073,167.8,167.74,24.61124293]
[1747605329991,7.46909073,167.82,167.74,24.61124293]
[1747605330165,17.4269073,167.8,167.74,24.61124293]
[1747605333491,23.38640487,167.8,167.74,24.61124293]
[1747605336494,23.38640487,167.8,167.71,20.86911129]
[1747605336669,23.38640487,167.8,167.72,18.64964886]
[1747605339291,23.38640487,167.8,167.74,18.64964886]
[1747605340797,5.95912043,167.81,167.74,5.96136081]
[1747605340997,17.4269073,167.8,167.74,5.96136081]
[1747605341381,17.4269073,167.8,167.71,26.0]
[1747605341689,17.4269073,167.75,167.69,15.08862883]
[1747605341892,17.4269073,167.74,167.69,15.08862883]
[1747605342082,17.4269073,167.73,167.69,15.08862883]
[1747605342897,23.38922544,167.72,167.69,15.08862883]
[1747605345101,17.4269073,167.72,167.69,15.08862883]
[1747605345508,23.38923132,167.72,167.69,15.08862883]
[1747605345675,5.96232402,167.72,167.69,15.08862883]
[1747605347202,23.38898283,167.73,167.69,15.08862883]
[1747605348017,5.96188655,167.74,167.69,15.08862883]
[1747605348240,17.4269073,167.74,167.69,15.08862883]
[1747605349118,17.4269073,167.73,167.69,15.08862883]
[1747605350007,23.38893676,167.73,167.69,15.08862883]
[1747605350797,5.96202946,167.73,167.69,15.08862883]
[1747605351005,23.38893676,167.73,167.69,15.08862883]
[1747605351308,5.96125186,167.75,167.69,15.08862883]
[1747605351515,17.4269073,167.74,167.69,15.08862883]
[1747605352792,17.4269073,167.74,167.69,21.05194638]
[1747605353399,23.38851567,167.74,167.69,21.05194638]
[1747605354925,23.38851567,167.74,167.69,15.08862883]
[1747605355131,17.4269073,167.73,167.69,15.08862883]
[1747605356941,23.38902795,167.73,167.67,5.96376185]
[1747605357242,17.4269073,167.7,167.65,5.96454065]
[1747605357540,17.4269073,167.7,167.64,5.96508026]
[1747605357836,17.4269073,167.7,167.64,21.05794179]
[1747605360452,17.4269073,167.68,167.64,15.09286153]
[1747605360628,23.39085028,167.68,167.64,15.09286153]
[1747605361119,17.4269073,167.67,167.64,15.09286153]
[1747605361322,17.4269073,167.65,167.54,8.0022]
[1747605361517,17.4269073,167.62,167.55,5.96836765]
[1747605362065,17.4269073,167.6,167.54,7.59223881]
[1747605362265,17.4269073,167.6,167.54,1.6236]
[1747605362442,17.4269073,167.59,167.52,5.96914817]
[1747605362655,17.4269073,167.58,167.51,5.96979284]
[1747605363175,17.4269073,167.57,167.51,5.96979284]
[1747605363344,17.4269073,167.56,167.51,5.96979284]
[1747605363869,7.62533547,167.59,167.5,5.97013711]
[1747605363870,17.4269073,167.55,167.5,5.97013711]
[1747605364181,17.4269073,167.52,167.47,36.81148906]
[1747605364478,17.4269073,167.5,167.45,5.97162303]
[1747605364682,17.4269073,167.5,167.43,14.93133031]
[1747605364841,17.4269073,167.49,167.43,14.93133031]
[1747605365040,17.4269073,167.49,167.42,5.97300203]
[1747605365448,1.4926217,167.52,167.42,5.97300203]
[1747605365966,26.0,167.58,167.47,18.64964886]
[1747605366270,26.18,167.6,167.5,26.0]
[1747605366470,26.18,167.6,167.51,18.64964886]
[1747605366662,26.18,167.6,167.52,5.96943648]
[1747605366663,17.4269073,167.59,167.52,5.96943648]
[1747605367043,43.6069073,167.6,167.52,20.89302769]
[1747605367749,43.5669073,167.63,167.53,18.64964886]
[1747605367963,43.5669073,167.63,167.54,26.0]
[1747605368138,1.49156523,167.65,167.54,26.0]
[1747605368139,35.50534361,167.67,167.57,18.64964886]
[1747605368348,26.12,167.67,167.58,0.41546629]
[1747605368662,26.12,167.67,167.61,5.96623113]
[1747605368968,6.332,167.71,167.62,18.64964886]
[1747605369182,23.7589073,167.71,167.62,18.64964886]
[1747605369385,5.80719488,167.72,167.62,18.64964886]
[1747605369572,21.67230218,167.72,167.64,18.64964886]
[1747605370191,17.4269073,167.72,167.64,18.64964886]
[1747605370685,17.4269073,167.72,167.65,5.96480763]
[1747605371896,27.91177721,167.73,167.65,5.96480763]
[1747605372455,27.6435,167.76,167.66,18.64964886]
[1747605372676,27.91177721,167.75,167.68,18.64964886]
[1747605372982,27.91177721,167.77,167.68,19.06301699]
[1747605373676,27.91177721,167.78,167.68,19.06301699]
[1747605373978,27.91177721,167.78,167.71,26.0]
[1747605374167,27.91177721,167.79,167.72,18.64964886]
[1747605374786,25.98,167.8,167.73,5.96196267]
[1747605374966,27.91177721,167.78,167.73,5.96196267]
[1747605375476,27.91177721,167.77,167.68,0.41336813]
[1747605375685,27.91177721,167.74,167.68,44.64964886]
[1747605375871,27.91177721,167.72,167.66,24.61410072]
[1747605376067,27.91177721,167.74,167.66,24.61410072]
[1747605376376,27.91177721,167.73,167.66,24.61410072]
[1747605377183,33.87376044,167.73,167.66,24.61410072]
[1747605377383,27.91177721,167.72,167.66,24.61410072]
[1747605378490,27.91177721,167.73,167.66,24.61410072]
[1747605381481,27.91177721,167.74,167.67,24.61362596]
[1747605383081,27.91177721,167.75,167.69,18.64964886]
[1747605383599,27.91177721,167.75,167.7,5.96302921]
[1747605383759,31.46026031,167.78,167.7,5.96302921]
[1747605383961,27.91177721,167.76,167.7,5.96302921]
[1747605384186,25.44,167.79,167.71,44.64964886]
[1747605384494,27.91177721,167.81,167.73,18.64964886]
[1747605384689,27.91177721,167.81,167.74,0.41230284]
[1747605384870,7.5357879,167.84,167.74,0.41230284]
[1747605385190,27.91177721,167.82,167.77,18.64964886]
[1747605385374,27.91177721,167.82,167.78,5.96018595]
[1747605389587,5.9573454,167.86,167.78,5.96018595]
[1747605389792,1.6354,167.88,167.79,18.64964886]
[1747605390287,27.91177721,167.85,167.79,18.64964886]
[1747605390592,27.91177721,167.84,167.79,18.64964886]
[1747605390793,27.91177721,167.85,167.8,5.95947556]
[1747605390975,27.91177721,167.86,167.81,18.64964886]
[1747605391162,27.91177721,167.85,167.81,18.64964886]
[1747605391690,27.91177721,167.85,167.8,5.95947556]
[1747605391887,27.91177721,167.82,167.78,26.0]
[1747605393480,5.95832974,167.84,167.78,26.0]
[1747605393698,27.91177721,167.82,167.78,26.0]
[1747605394214,27.91177721,167.83,167.78,31.9600777]
[1747605395211,27.91177721,167.8,167.73,31.8926]
[1747605395382,27.91177721,167.79,167.74,18.64964886]
[1747605395711,27.91177721,167.77,167.73,25.66]
[1747605395887,27.91177721,167.76,167.71,24.61222815]
[1747605396208,27.91177721,167.76,167.69,0.41303174]
[1747605396386,27.91177721,167.76,167.69,18.64964886]
[1747605396715,27.91177721,167.75,167.69,18.64964886]
[1747605396882,27.91177721,167.76,167.69,18.64964886]
[1747605397414,27.91177721,167.75,167.69,24.61297764]
[1747605397716,20.8576672,167.81,167.67,25.66]
[1747605397717,27.91177721,167.71,167.67,25.66]
[1747605397915,27.91177721,167.71,167.65,24.61445649]
[1747605398285,27.91177721,167.71,167.65,50.61445649]
[1747605398687,31.00605489,167.76,167.65,50.61445649]
[1747605398908,27.91177721,167.72,167.65,50.61445649]
[1747605399516,27.91177721,167.72,167.65,51.0285116]
[1747605401304,27.91177721,167.71,167.65,51.0285116]
[1747605402698,33.87449151,167.71,167.65,51.0285116]
[1747605402898,33.87449151,167.71,167.65,50.61445649]
[1747605403217,33.87449151,167.71,167.64,15.09314856]
[1747605403392,27.91177721,167.68,167.64,15.09314856]
[1747605404702,5.96409614,167.67,167.64,15.09314856]
[1747605404896,27.91177721,167.66,167.64,15.09314856]
[1747605405108,27.91177721,167.66,167.6,18.64964886]
[1747605406503,27.91177721,167.66,167.6,24.61615588]
[1747605406700,1.5316,167.68,167.6,24.61615588]
[1747605406902,29.44337721,167.68,167.6,24.61615588]
[1747605407115,1.5316,167.68,167.6,25.03128269]
[1747605407317,27.91177721,167.7,167.6,39.94775047]
[1747605407519,27.91177721,167.7,167.63,26.0]
[1747605407720,24.76,167.74,167.64,18.64964886]
[1747605408026,29.54497721,167.76,167.68,18.64964886]
[1747605408225,29.54497721,167.76,167.68,19.06302317]
[1747605408530,27.91177721,167.75,167.68,19.06302317]
[1747605408706,27.91177721,167.75,167.68,18.64964886]
[1747605409114,27.91177721,167.72,167.65,27.5129]
[1747605409330,27.91177721,167.7,167.65,5.96480763]
[1747605409531,26.0,167.74,167.62,21.49426853]
[1747605409532,1.49083244,167.73,167.63,5.96551929]
[1747605409836,27.91177721,167.69,167.63,5.96551929]
[1747605410737,27.91177721,167.72,167.64,18.64964886]
[1747605411120,52.85177721,167.73,167.66,5.96445186]
[1747605411313,27.91177721,167.73,167.66,5.96445186]
[1747605411635,27.91177721,167.74,167.67,18.64964886]
[1747605412221,27.91177721,167.72,167.66,5.96445186]
[1747605413252,27.91177721,167.71,167.66,5.96445186]
[1747605413947,5.96160724,167.74,167.66,5.96445186]
[1747605414247,27.91177721,167.72,167.66,5.96445186]
[1747605416124,27.91177721,167.71,167.66,5.96445186]
[1747605419327,27.91177721,167.67,167.62,15.09436853]
[1747605419523,27.49072356,167.7,167.62,15.09436853]
[1747605419524,27.91177721,167.64,167.62,15.09436853]
[1747605419744,53.91177721,167.67,167.62,15.09436853]
[1747605420040,27.91177721,167.63,167.62,15.09436853]
[1747605420421,27.91177721,167.63,167.54,12.39634059]
[1747605420629,27.91177721,167.6,167.54,5.96864059]
[1747605421545,27.91177721,167.59,167.53,5.96901678]
[1747605421743,27.91177721,167.57,167.51,5.96979284]
[1747605422350,27.91177721,167.55,167.51,5.96979284]
[1747605422724,27.91177721,167.54,167.51,5.96979284]
[1747605422940,27.91177721,167.54,167.49,5.9705057]
[1747605423448,27.91177721,167.53,167.47,31.97121872]
[1747605423751,27.91177721,167.53,167.47,5.97121872]
[1747605424050,27.91177721,167.56,167.48,18.64964886]
[1747605424350,24.68,167.57,167.49,0.41694505]
[1747605424865,24.68,167.57,167.51,26.0]
[1747605425150,27.91177721,167.58,167.52,18.64964886]
[1747605425330,27.91177721,167.58,167.53,5.96908016]
[1747605426128,8.0775,167.6,167.5,5.97014925]
[1747605426129,27.91177721,167.54,167.5,5.97014925]
[1747605427041,27.91177721,167.53,167.5,5.97014925]
[1747605427236,27.91177721,167.53,167.49,5.9704816]
[1747605427738,9.56978002,167.6,167.49,20.89674585]
[1747605427944,27.91177721,167.58,167.5,18.64964886]
[1747605428243,27.91177721,167.58,167.5,44.64964886]
[1747605428623,9.52432889,167.64,167.54,18.64964886]
[1747605428867,27.91177721,167.62,167.54,18.64964886]
[1747605429024,27.91177721,167.65,167.58,18.64964886]
[1747605429228,27.91177721,167.66,167.58,18.64964886]
[1747605429434,27.91177721,167.67,167.58,18.64964886]
[1747605429621,27.91177721,167.66,167.6,18.64964886]
[1747605430054,27.91177721,167.65,167.6,18.64964886]
[1747605430632,27.91177721,167.65,167.59,5.96694313]
[1747605431661,27.91177721,167.66,167.61,5.96623113]
[1747605432448,27.91177721,167.66,167.59,5.96660173]
[1747605432748,27.91177721,167.63,167.57,26.0]
[1747605432929,27.91177721,167.62,167.57,26.0]
[1747605433247,26.0,167.64,167.55,5.96814184]
[1747605433555,27.91177721,167.6,167.54,24.61833108]
[1747605433954,27.91177721,167.59,167.52,24.82]
[1747605434128,27.91177721,167.56,167.49,5.9705057]
[1747605434455,27.91177721,167.54,167.49,31.9705057]
[1747605435948,27.91177721,167.54,167.48,24.62045978]
[1747605437352,5.9673513,167.58,167.48,24.62045978]
[1747605437559,27.91177721,167.55,167.48,24.62045978]
[1747605438058,27.91177721,167.54,167.48,24.62045978]
[1747605439424,27.91177721,167.54,167.48,5.97081092]
[1747605440259,1.49231783,167.57,167.48,5.97081092]
[1747605440554,27.91177721,167.6,167.52,18.64964886]
[1747605440733,27.91177721,167.6,167.52,19.06590152]
[1747605441059,32.25787694,167.63,167.52,19.06590152]
[1747605441242,24.8,167.63,167.54,18.64964886]
[1747605441549,27.91177721,167.61,167.54,44.64964886]
[1747605442534,24.8,167.63,167.54,45.06560884]
[1747605442733,27.91177721,167.62,167.54,45.06560884]
[1747605443148,27.91177721,167.62,167.56,18.64964886]
[1747605444762,27.91177721,167.63,167.56,18.64964886]
[1747605445132,27.91177721,167.63,167.57,5.9676553]
[1747605445542,27.91177721,167.63,167.58,18.64964886]
[1747605445755,27.91177721,167.65,167.58,18.64964886]
[1747605447253,26.0,167.67,167.58,18.64964886]
[1747605447254,27.91177721,167.64,167.59,5.96694313]
[1747605447427,7.7244,167.68,167.59,5.96694313]
[1747605447634,27.91177721,167.67,167.6,18.64964886]
[1747605448951,27.91177721,167.67,167.6,44.64964886]
[1747605449350,27.91177721,167.67,167.61,5.96623113]
[1747605454647,27.91177721,167.68,167.62,18.64964886]
[1747605454846,27.91177721,167.69,167.62,18.64964886]
[1747605455765,39.98241397,167.72,167.64,18.64964886]
[1747605455943,27.91177721,167.7,167.64,18.64964886]
[1747605456978,27.91177721,167.71,167.65,5.96480763]
[1747605457647,7.59502005,167.73,167.65,5.96480763]
[1747605457839,27.91177721,167.72,167.65,5.96480763]
[1747605459260,33.87410493,167.72,167.65,5.96480763]
[1747605459456,27.91177721,167.71,167.65,5.96480763]
[1747605460366,33.87410493,167.72,167.65,5.96480763]
[1747605460575,27.91177721,167.72,167.65,5.96480763]
[1747605461278,27.91177721,167.71,167.65,5.96480763]
[1747605461445,27.91177721,167.7,167.65,5.96480763]
[1747605461844,27.91177721,167.71,167.65,5.96480763]
[1747605462065,27.91177721,167.69,167.64,5.96484476]
[1747605462372,27.91177721,167.67,167.62,18.64964886]
[1747605463079,27.91177721,167.66,167.62,18.64964886]
[1747605464571,5.96348205,167.69,167.62,24.61523385]
[1747605464745,27.91177721,167.68,167.62,24.61523385]
[1747605465573,1.49069976,167.72,167.62,24.61523385]
[1747605465871,27.91177721,167.72,167.63,0.41464032]
[1747605466244,1.633,167.73,167.66,18.64964886]
[1747605466470,5.96168905,167.74,167.66,19.06364086]
[1747605466675,6.5157,167.76,167.68,18.64964886]
[1747605466974,27.91177721,167.76,167.68,45.06299179]
[1747605467480,1.6252,167.77,167.68,45.06299179]
[1747605467780,27.91177721,167.78,167.71,18.64964886]
[1747605467979,27.91177721,167.78,167.71,45.06246766]
[1747605468577,27.91177721,167.78,167.72,5.96231814]
[1747605469869,27.91177721,167.77,167.72,5.96231814]
[1747605475163,27.91177721,167.74,167.7,18.64964886]
[1747605475768,27.91177721,167.74,167.7,24.61248458]
[1747605481291,27.91177721,167.73,167.67,18.64964886]
[1747605481460,20.86065084,167.78,167.67,24.61371662]
[1747605481461,27.91177721,167.76,167.67,24.61371662]
[1747605481662,27.91177721,167.72,167.67,24.61371662]
[1747605481961,27.91177721,167.72,167.65,26.0]
[1747605481962,27.91177721,167.69,167.63,15.09409972]
[1747605482165,27.91177721,167.67,167.63,15.09409972]
[1747605482477,27.91177721,167.66,167.63,15.09409972]
[1747605483166,27.91177721,167.65,167.63,15.09409972]
[1747605483578,27.49118085,167.69,167.63,15.09409972]
[1747605483984,27.91177721,167.65,167.63,15.09409972]
[1747605485487,27.91177721,167.64,167.57,26.0]
[1747605485670,27.91177721,167.61,167.57,26.0]
[1747605485996,13.73086368,167.65,167.56,24.61758313]
[1747605486166,27.91177721,167.59,167.53,5.96908016]
[1747605486485,1.49158855,167.64,167.53,18.64964886]
[1747605486486,27.91177721,167.58,167.53,18.64964886]
[1747605486691,27.91177721,167.59,167.53,18.64964886]
[1747605487670,5.96680097,167.6,167.53,24.61863408]
[1747605487989,33.87857818,167.6,167.53,24.61863408]
[1747605488672,1.49178987,167.64,167.55,18.64964886]
[1747605488890,27.91177721,167.62,167.55,18.64964886]
[1747605489088,27.91177721,167.61,167.55,18.64964886]
[1747605489390,1.49178987,167.64,167.55,18.64964886]
[1747605489685,27.91177721,167.62,167.55,18.64964886]
[1747605490594,5.96531166,167.64,167.56,5.96801145]
[1747605490763,27.91177721,167.62,167.56,5.96801145]
[1747605492594,33.87773834,167.62,167.55,5.96836765]
[1747605492783,27.91177721,167.61,167.56,18.64964886]
[1747605493097,27.91177721,167.62,167.56,18.64964886]
[1747605494001,27.91177721,167.61,167.56,24.61739752]
[1747605495782,17.46879923,167.61,167.56,24.61739752]
[1747605501601,9.25752027,167.65,167.56,24.61739752]
[1747605501808,17.46879923,167.61,167.56,24.61739752]
[1747605502602,17.46879923,167.6,167.55,24.61794409]
[1747605502902,17.46879923,167.59,167.54,21.06965286]
[1747605504089,17.46879923,167.59,167.54,15.10098045]
[1747605504290,5.96587519,167.62,167.54,21.0696489]
[1747605504605,17.46879923,167.59,167.54,20.55671166]
[1747605505230,17.46879923,167.59,167.54,14.58804321]
[1747605506222,23.43585886,167.59,167.54,14.58804321]
[1747605506726,23.43585886,167.59,167.54,20.55671563]
[1747605508728,23.43585886,167.59,167.54,14.58804321]
[1747605509025,17.46879923,167.58,167.54,14.58804321]
[1747605510530,23.4361574,167.58,167.54,14.58804321]
[1747605511026,5.96735817,167.58,167.54,14.58804321]
[1747605511332,23.4361574,167.58,167.54,14.58804321]
[1747605511629,5.96735817,167.58,167.54,14.58804321]
[1747605513609,23.43583844,167.59,167.54,14.58804321]
[1747605513924,17.46879923,167.59,167.54,20.55663673]
[1747605516138,17.46879923,167.6,167.54,20.55663673]
[1747605516319,5.96630088,167.61,167.54,20.55663673]
[1747605516623,23.43510011,167.61,167.54,20.55663673]
[1747605516832,17.46879923,167.6,167.54,20.55663673]
[1747605517835,23.43541145,167.6,167.54,20.55663673]
[1747605519623,17.46879923,167.6,167.54,20.55663673]
[1747605521242,23.43554454,167.6,167.54,20.55663673]
[1747605521927,17.46879923,167.61,167.54,20.55663673]
[1747605522119,1.49184418,167.62,167.54,20.55663673]
[1747605522318,17.46879923,167.6,167.54,20.55663673]
[1747605526130,4.23882096,167.68,167.59,18.64964886]
[1747605526621,4.23882096,167.68,167.62,26.0]
[1747605527114,4.23882096,167.68,167.63,18.64964886]
[1747605527916,4.23882096,167.68,167.64,5.96516344]
[1747605529044,17.46879923,167.71,167.64,5.96516344]
[1747605529542,18.95961596,167.75,167.65,46.20024886]
[1747605529841,17.46879923,167.76,167.69,18.64964886]
[1747605530053,17.46879923,167.78,167.69,18.64964886]
[1747605531353,24.91906572,167.79,167.71,18.64964886]
[1747605531647,17.46879923,167.78,167.71,18.64964886]
[1747605531951,17.46879923,167.79,167.71,18.64964886]
[1747605532654,23.42871379,167.79,167.71,18.64964886]
[1747605532822,23.42871379,167.79,167.69,24.61300145]
[1747605532823,17.46879923,167.76,167.69,24.61300145]
[1747605533023,17.46879923,167.76,167.69,18.64964886]
[1747605533249,17.46879923,167.76,167.68,31.96366227]
[1747605533542,17.46879923,167.69,167.64,6.6477]
[1747605533715,17.46879923,167.69,167.62,145.86623064]
[1747605533716,17.46879923,167.68,167.62,13.43203703]
[1747605533921,17.46879923,167.67,167.63,26.0]
[1747605534242,17.46879923,167.64,167.62,7.46623064]
[1747605534436,17.46879923,167.63,167.62,7.46623064]
[1747605535024,17.46879923,167.63,167.56,5.96794786]
[1747605535240,17.46879923,167.61,167.56,5.96794786]
[1747605535424,17.46879923,167.61,167.55,24.61793574]
[1747605535825,5.96480763,167.65,167.55,24.61793574]
[1747605536049,17.46879923,167.62,167.55,24.61793574]
[1747605536453,1.49165823,167.64,167.55,24.61793574]
[1747605536622,17.46879923,167.62,167.55,24.61793574]
[1747605536822,1.49165823,167.64,167.55,24.61793574]
[1747605537116,17.46879923,167.64,167.55,39.95492983]
[1747605537321,17.46879923,167.65,167.56,26.0]
[1747605537521,1.49139703,167.69,167.6,26.0]
[1747605537748,17.46879923,167.68,167.6,26.0]
[1747605538848,17.46879923,167.68,167.61,5.96623113]
[1747605539529,17.46879923,167.67,167.61,5.96623113]
[1747605539754,27.93233987,167.67,167.61,5.96623113]
[1747605540046,1.49139703,167.69,167.61,5.96623113]
[1747605540360,27.93233987,167.67,167.61,5.96623113]
[1747605540655,27.93233987,167.68,167.61,5.96623113]
[1747605541660,27.93233987,167.67,167.61,5.96623113]
[1747605542759,33.95678125,167.71,167.62,18.64964886]
[1747605542934,27.93233987,167.7,167.62,18.64964886]
[1747605543861,27.93233987,167.69,167.63,5.96551929]
[1747605544454,7.95678125,167.71,167.63,5.96551929]
[1747605544762,27.93233987,167.69,167.63,5.96551929]
[1747605545132,27.93233987,167.7,167.63,20.87931753]
[1747605545332,27.93233987,167.71,167.64,18.64964886]
[1747605545528,27.93233987,167.7,167.64,18.64964886]
[1747605545839,27.93233987,167.69,167.63,5.96551929]
[1747605546035,27.93233987,167.69,167.62,24.61552405]
[1747605547052,27.93233987,167.68,167.62,24.61552405]
[1747605548954,3.10250452,167.72,167.62,24.61552405]
[1747605548955,27.93233987,167.69,167.62,39.53021203]
[1747605549454,9.06492725,167.72,167.62,39.53021203]
[1747605549662,27.93233987,167.69,167.62,39.53021203]
[1747605551136,3.10250452,167.72,167.62,39.53021203]
[1747605551337,27.93233987,167.71,167.63,26.0]
[1747605551641,27.93233987,167.71,167.65,26.0]
[1747605552965,27.93233987,167.71,167.66,5.96445186]
[1747605553660,1.49092716,167.74,167.66,5.96445186]
[1747605553865,27.93233987,167.72,167.66,5.96445186]
[1747605554757,27.93233987,167.72,167.66,20.87558152]
[1747605558670,27.93233987,167.71,167.66,20.87558152]
[1747605560870,7.45266994,167.74,167.62,30.24360006]
[1747605560871,27.93233987,167.68,167.64,5.96516344]
[1747605561178,5.96516344,167.64,167.56,1.61]
[1747605561465,5.96516344,167.64,167.54,22.05427385]
[1747605561466,27.93233987,167.58,167.54,28.02291226]
[1747605561760,17.47772263,167.58,167.54,20.55668162]
[1747605561959,17.47772263,167.57,167.54,14.58804321]
[1747605562159,1.6641,167.6,167.54,14.58804321]
[1747605562160,17.47772263,167.56,167.54,14.58804321]
[1747605562758,17.47772263,167.56,167.52,5.96939397]
[1747605563059,17.47772263,167.55,167.52,5.96939397]
[1747605563250,17.47772263,167.54,167.5,7.46623064]
[1747605563559,17.47772263,167.53,167.5,7.46623064]
[1747605563755,17.47772263,167.53,167.5,13.43615962]
[1747605564339,17.47772263,167.53,167.5,5.96992898]
[1747605564865,17.47772263,167.54,167.48,5.97086219]
[1747605567067,17.47772263,167.55,167.48,5.97086219]
[1747605567961,1.49237759,167.56,167.48,5.97086219]
[1747605568260,1.49237759,167.56,167.48,20.89801767]
[1747605568489,17.47772263,167.55,167.48,20.89801767]
[1747605568766,17.47772263,167.57,167.49,18.64964886]
[1747605568940,17.47772263,167.58,167.49,18.64964886]
[1747605569248,25.85206534,167.59,167.49,19.06659542]
[1747605569450,43.32978797,167.59,167.49,19.06659542]
[1747605569656,17.47772263,167.58,167.49,18.64964886]
[1747605571167,17.47772263,167.58,167.51,18.64964886]
[1747605571868,25.85206534,167.59,167.51,18.64964886]
[1747605572064,43.32978797,167.59,167.51,18.64964886]
[1747605572369,43.32978797,167.59,167.52,5.96943648]
[1747605573259,24.36,167.59,167.52,20.89302769]
[1747605573474,24.09372263,167.61,167.53,18.64964886]
[1747605573771,25.58556799,167.61,167.53,18.64964886]
[1747605574372,25.58556799,167.61,167.54,5.96872388]
[1747605575068,1.49182173,167.62,167.55,18.64964886]
[1747605575251,18.96936704,167.67,167.58,18.64964886]
[1747605575448,41.81772263,167.68,167.58,18.64964886]
[1747605575647,26.91399053,167.69,167.58,20.67652674]
[1747605575878,17.47772263,167.7,167.58,20.67652674]
[1747605576047,1.49116468,167.71,167.62,18.64964886]
[1747605576249,18.96865784,167.72,167.64,18.64964886]
[1747605576478,17.47772263,167.7,167.63,5.96551929]
[1747605576771,17.47772263,167.69,167.63,5.96551929]
[1747605576971,17.47772263,167.67,167.62,5.96581954]
[1747605577150,7.45329465,167.72,167.59,5.96694313]
[1747605577151,17.47772263,167.65,167.59,5.96694313]
[1747605577346,17.47772263,167.64,167.58,5.96720354]
[1747605577566,17.47772263,167.63,167.58,5.96720354]
[1747605577758,27.94650358,167.63,167.58,5.96720354]
[1747605577956,27.94650358,167.63,167.56,56.30766898]
[1747605578271,27.94650358,167.62,167.56,31.96766898]
[1747605578659,5.96516344,167.64,167.56,5.96766898]
[1747605578976,33.91166702,167.64,167.56,5.96766898]
[1747605580259,27.94650358,167.63,167.56,5.96766898]
[1747605581077,33.91204072,167.63,167.56,5.96766898]
[1747605584885,27.94650358,167.63,167.56,5.96766898]
[1747605585186,29.43819654,167.63,167.56,5.96766898]
[1747605585560,27.94650358,167.62,167.56,5.96766898]
[1747605585884,27.94650358,167.58,167.52,5.96932816]
[1747605586261,27.94650358,167.58,167.51,50.61934945]
[1747605586586,27.94650358,167.58,167.51,24.61934945]
[1747605586880,33.91398886,167.58,167.51,24.61934945]
[1747605588257,5.96748528,167.58,167.51,24.61934945]
[1747605588570,33.91398886,167.58,167.51,24.61934945]
[1747605589288,27.94650358,167.56,167.5,5.97014925]
[1747605589495,27.94650358,167.56,167.49,31.9704018]
[1747605590069,27.94650358,167.55,167.49,31.9704018]
[1747605590283,27.94650358,167.55,167.49,26.0]
[1747605591267,27.94650358,167.56,167.49,26.0]
[1747605591469,5.96836765,167.55,167.48,24.62043186]
[1747605591769,5.96836765,167.55,167.48,50.62043186]
[1747605597592,5.96810201,167.56,167.48,50.62043186]
[1747605597811,35.18,167.59,167.48,50.62043186]
[1747605597812,5.96754784,167.58,167.49,19.06700695]
[1747605598013,24.26,167.61,167.49,19.06700695]
[1747605598796,30.22633414,167.61,167.51,18.64964886]
[1747605599094,47.70744797,167.61,167.51,18.64964886]
[1747605599793,58.18312665,167.61,167.51,18.64964886]